[Event "RUS Cup Final Men 2018"]
[Site "Khanty-Mansiysk"]
[Date "2018.12.07"]
[Round "2.1"]
[White "Timofeev, Artyom"]
[Black "Sorokin, Aleksey"]
[Result "1/2-1/2"]
[ECO "D85"]
[WhiteElo "2589"]
[BlackElo "2524"]
[Annotator "ChessBase"]
[PlyCount "98"]
[EventDate "2018.12.05"]
[EventType "k.o."]
[EventCountry "RUS"]
[SourceTitle "playchess.com"]
[Source "ChessBase"]
[SourceQuality "1"]
[TimeControl "5400+30"]

1. c4 {[%emt 0:00:00]} Nf6 {[%emt 0:00:00]} 2. Nc3 {[%emt 0:00:00]} d5 {[%emt 0:00:26]} 3. cxd5 {[%emt 0:00:38]} Nxd5 {[%emt 0:00:13]} 4. Nf3 {[%emt 0:00:09]} g6 {[%emt 0:00:46]} 5. d4 {[%emt 0:00:22]} Bg7 {[%emt 0:00:25]} 6. e4 {[%emt 0:00:09]} Nxc3 {[%emt 0:00:09]} 7. bxc3 {[%emt 0:00:05]} c5 {[%emt 0:00:12]} 8. Be3 {[%emt 0:00:11]} Qa5 {[%emt 0:01:09]} 9. Nd2 {[%emt 0:00:52]} Qc7 {[%emt 0:05:47]} 10. Rc1 {[%emt 0:01:19]} O-O {[%emt 0:01:21]} 11. Be2 {[%emt 0:06:36]} b6 {[%emt 0:01:03]} 12. O-O {[%emt 0:00:31]} Ba6 {[%emt 0:02:58]} 13. Bxa6 {[%emt 0:02:46]} Nxa6 {[%emt 0:00:27]} 14. d5 {[%emt 0:00:36]} e6 {[%emt 0:02:06]} 15. dxe6 {[%emt 0:02:13]} fxe6 {[%emt 0:00:51]} 16. Qg4 {[%emt 0:00:18]} Qc6 {[%emt 0:03:18]} 17. Nf3 {[%emt 0:03:04]} Nc7 {[%emt 0:02:06]} 18. Qh4 {[%emt 0:05:44]} Rad8 {[%emt 0:04:23]} 19. Bf4 {[%emt 0:01:55]} Nb5 {[%emt 0:03:13]} 20. Be5 {[%emt 0:02:38]} Bxe5 {[%emt 0:04:53]} 21. Nxe5 {[%emt 0:00:16]} Qc7 {[%emt 0:02:52]} 22. Qg3 {[%emt 0:05:07]} Nd6 {[%emt 0:08:18]} 23. Ng4 {[%emt 0:04:06]} Ne8 {[%emt 0:08:07]} 24. e5 {[%emt 0:02:16]} h5 {[%emt 0:02:21]} 25. Ne3 {[%emt 0:00:44]} Kh7 {[%emt 0:01:42]} 26. Rcd1 {[%emt 0:00:51]} Rf7 {[%emt 0:04:30]} 27. Rxd8 {[%emt 0:04:27]} Qxd8 {[%emt 0:00:09]} 28. Qh3 {[%emt 0:00:09]} Qg5 {[%emt 0:01:54]} 29. Nc4 {[%emt 0:08:11]} Ng7 {[%emt 0:01:16]} 30. Qd3 {[%emt 0:00:42]} Qf5 {[%emt 0:01:39]} 31. Qe2 {[%emt 0:00:53]} Qf4 {[%emt 0:03:31]} 32. Nd6 {[%emt 0:01:59]} Rf8 {[%emt 0:01:54]} 33. Rd1 {[%emt 0:00:25]} Rd8 {[%emt 0:01:36]} 34. g3 {[%emt 0:01:15]} Qg4 {[%emt 0:03:12]} 35. Qxg4 {[%emt 0:03:20]} hxg4 {[%emt 0:00:38]} 36. Kf1 {[%emt 0:00:14]} g5 {[%emt 0:02:20]} 37. Re1 {[%emt 0:03:31]} Kg6 {[%emt 0:01:50]} 38. Re4 {[%emt 0:06:05]} Nf5 {[%emt 0:00:27]} 39. Rxg4 {[%emt 0:00:06]} Nxd6 {[%emt 0:00:54]} 40. exd6 {[%emt 0:00:06]} Kf5 {[%emt 0:01:37]} 41. Ra4 {[%emt 0:01:45]} a5 {[%emt 0:00:28]} 42. h4 {[%emt 0:01:56]} Rxd6 {[%emt 0:00:13]} 43. Ke2 {[%emt 0:01:33]} Rd5 {[%emt 0:03:13]} 44. g4+ {[%emt 0:01:27]} Kf6 {[%emt 0:00:24]} 45. h5 {[%emt 0:04:10]} Re5+ {[%emt 0:00:28]} 46. Kd2 {[%emt 0:04:42]} Rd5+ {[%emt 0:00:10]} 47. Ke2 {[%emt 0:00:22]} Re5+ {[%emt 0:00:04]} 48. Kd2 {[%emt 0:00:11]} Rd5+ {[%emt 0:00:08]} 49. Ke2 {[%emt 0:00:05]} Ke5 1/2-1/2

[Event "RUS Cup Final Men 2018"]
[Site "Khanty-Mansiysk"]
[Date "2018.12.07"]
[Round "2.1"]
[White "Bocharov, Dmitry"]
[Black "Paravyan, David"]
[Result "1/2-1/2"]
[ECO "A04"]
[WhiteElo "2533"]
[BlackElo "2634"]
[Annotator "ChessBase"]
[PlyCount "51"]
[EventDate "2018.12.05"]
[EventType "k.o."]
[EventCountry "RUS"]
[SourceTitle "playchess.com"]
[Source "ChessBase"]
[SourceQuality "1"]
[TimeControl "5400+30"]

1. Nf3 {[%emt 0:04:30]} c5 {[%emt 0:04:28]} 2. e3 {[%emt 0:00:51]} g6 {[%emt 0:06:53]} 3. d4 {[%emt 0:00:32]} Bg7 {[%emt 0:00:04]} 4. d5 {[%emt 0:01:27]} Nf6 {[%emt 0:00:22]} 5. Nc3 {[%emt 0:01:30]} O-O {[%emt 0:06:16]} 6. Bc4 {[%emt 0:01:13]} d6 {[%emt 0:03:54]} 7. h3 {[%emt 0:04:10]} Nbd7 {[%emt 0:13:51]} 8. O-O {[%emt 0:01:25]} Nb6 {[%emt 0:00:10]} 9. Be2 {[%emt 0:02:43]} e6 {[%emt 0:01:55]} 10. e4 {[%emt 0:00:23]} exd5 {[%emt 0:00:26]} 11. exd5 {[%emt 0:00:07]} Bf5 {[%emt 0:00:23]} 12. a4 {[%emt 0:11:46]} Ne4 {[%emt 0:03:35]} 13. Nxe4 {[%emt 0:21:34]} Bxe4 {[%emt 0:00:04]} 14. a5 {[%emt 0:12:04]} Bxf3 {[%emt 0:03:47]} 15. Bxf3 {[%emt 0:02:07]} Nc4 {[%emt 0:00:06]} 16. a6 {[%emt 0:02:59]} b5 {[%emt 0:10:19]} 17. c3 {[%emt 0:00:24]} b4 {[%emt 0:11:07]} 18. Ra2 {[%emt 0:04:50]} Rb8 {[%emt 0:04:41]} 19. Be2 {[%emt 0:00:57]} Ne5 {[%emt 0:00:06]} 20. Bd2 {[%emt 0:02:47]} bxc3 {[%emt 0:01:00]} 21. bxc3 {[%emt 0:00:50]} Re8 {[%emt 0:08:07]} 22. Qc2 {[%emt 0:01:50]} Nd7 {[%emt 0:01:15]} 23. Bd3 {[%emt 0:00:54]} Ne5 {[%emt 0:00:28]} 24. Be2 {[%emt 0:00:06]} Nd7 {[%emt 0:00:02]} 25. Bd3 {[%emt 0:09:49]} Ne5 {[%emt 0:00:17]} 26. Be2 {[%emt 0:00:28]} 1/2-1/2